Cogmind - Beta 13 @@@ ROGUE MODE // 2024.04.27 @ 12:15:11 Player: Olafz Result: Destroyed by as-07446 with Assembled Heavy Rifle Performance ------------- Evolutions (0) 0 Regions Visited (2) 400 Robots Destroyed (11) 55 Value Destroyed (265) 265 Prototype IDs (0) 0 Alien Tech Used (0) 0 Bonus (0) 0 TOTAL SCORE: 720 Bonus ------- None Cogmind --------- Core Integrity 0/250 Matter 280/300 Energy 157/250 System Corruption 0% Temperature Hot (255) Movement Treading (160) Location -10/Mines Parts ------- > --- POWER (1) -------- Ion Engine > --- PROPULSION (2) --- Light Treads Light Treads > --- UTILITY (2) ------ Large Storage Unit Seismic Detector > --- WEAPON (2) ------- Beamcaster > --- INVENTORY (15) --- Improved Ion Engine Light Treads Carbon-fiber Leg Carbon-fiber Leg Experimental Sensor Array Terrain Scanner Core Shielding Light Assault Rifle Grenade Launcher Peak State ------------ > --- POWER ------------ Light Angular Momentum Engine > --- PROPULSION ------- Carbon-fiber Leg Carbon-fiber Leg > --- UTILITY ---------- Large Storage Unit Seismic Detector > --- WEAPON ----------- Beam Rifle Beamcaster > --- INVENTORY -------- Ion Engine Light Ion Engine Light Ion Engine Improved Ion Engine Light Treads Light Treads Light Treads Light Treads Light Treads Light Treads Light Treads Experimental Sensor Array Terrain Scanner Light Assault Rifle Light Assault Rifle [Rating: 22] Favorites ----------- Power Ion Engine Engine Ion Engine Propulsion Light Treads Treads Light Treads Leg Carbon-fiber Leg Utility Seismic Detector Device Seismic Detector Storage Large Storage Unit Weapon Light Assault Rifle Energy Gun EM Pulse Gun Ballistic Gun Light Assault Rifle Build | -11 -10 -10 ------- Run | Yrd Mat Min Slots Evolved . | . . . Power . | . . . Propulsion . | . . . Utility . | . . . Weapon . | . . . Parts Attached 20 | . 5 15 Power 2 | . . 2 Engine 2 | . . 2 Core . | . . . Reactor . | . . . Propulsion 11 | . 2 9 Treads 9 | . 2 7 Leg 2 | . . 2 Wheel . | . . . Hover . | . . . Flight . | . . . Utility 3 | . 3 . Device 2 | . 2 . Storage 1 | . 1 . Processor . | . . . Hackware . | . . . Protection . | . . . Artifact . | . . . Weapon 4 | . . 4 Energy Gun 2 | . . 2 Energy Cannon . | . . . Ballistic Gun 2 | . . 2 Ballistic Cannon . | . . . Launcher . | . . . Special Weapon . | . . . Impact Weapon . | . . . Slashing Weapon . | . . . Piercing Weapon . | . . . Special Melee Weapon . | . . . Unidentified Prototypes . | . . . Parts Lost 7 | . . 7 Power 1 | . . 1 Propulsion 4 | . . 4 Utility . | . . . Weapon 2 | . . 2 Highest Loss Streak 5 | . . 5 To Critical Strikes . | . . . Average Slot Usage (%) 97 | . 96 98 Engine 14 | . 14 14 Treads 27 | . 27 26 Device 12 | . 11 14 Storage 14 | . 14 14 Energy Gun 12 | . 14 11 Ballistic Gun 14 | . 14 15 Naked Turns . | . . . Heaviest Build 38 | 13 29 38 Greatest Support 40 | 20 40 40 Greatest Overweight (x) 2 | . . 2 Average Overweight (x) . | . . . Largest Inventory Capacity 15 | . 15 15 Average Capacity 12 | . 9 15 Most Carried 15 | . 8 15 Average Carried 9 | . 7 10 Final Capacity 15 | 8 15 15 Final Carried 9 | 6 8 9 Class Distribution -------------------- 100% | Mutant Dominant Class ---------------- Mutant | -10/Materials Mutant | -10/Mines Resources | -11 -10 -10 ----------- Run | Yrd Mat Min Matter Collected 421 | 170 93 158 Remotely . | . . . Salvage Created 340 | . 231 109 Parts 26 | . 15 11 Haulers Intercepted 1 | . 1 . Recyclers Shooed . | . . . Parts Field Recycled . | . . . Retrieved Matter . | . . . Parts Self-Destructed . | . . . Prevented . | . . . Kills | -11 -10 -10 ------- Run | Yrd Mat Min Combat Hostiles Destroyed 9 | . 4 5 Guns 7 | . 3 4 AOE 2 | . 1 1 Classes Destroyed 4 | . 3 1 Hauler 1 | . 1 . Watcher 1 | . 1 . Swarmer 3 | . . 3 Grunt 6 | . 4 2 Best Kill Streak 2 | . 2 2 Combat Bots Only 2 | . 2 2 Max Kills in Single Turn 2 | . 1 2 Gunslinging . | . . . Exploded 1 | . 1 1 Melee . | . . . Uniques/NPCs Destroyed . | . . . Combat | -11 -10 -10 -------- Run | Yrd Mat Min Hostile Shots Fired 119 | . 30 89 Missed 32 | . 13 19 Damage Taken 1402 | . 188 1214 Core 257 | . 10 247 Absorbed by Shields . | . . . Core Remaining (%) 100 | 100 . . Volleys Fired 56 | . 24 32 Largest 2 | . 2 2 Hottest 75 | . 60 75 Shots Fired 102 | . 48 54 Gun 102 | . 48 54 Cannon . | . . . Launcher . | . . . Special . | . . . Kinetic 67 | . 24 43 Thermal 8 | . . 8 Explosive . | . . . Electromagnetic 27 | . 24 3 Robot Hit Streak 6 | . 6 6 Robot Miss Streak 4 | . 3 4 Penetration Max . | . . . Secondary Targets 1 | . 1 . Max Gunslinging Chain 1 | . 1 . Shots Hit Robots 58 | . 27 31 Core Hits 19 | . 9 10 Critical Kills . | . . . Critical Parts Destroyed . | . . . Critical Strikes . | . . . Melee Attacks . | . . . Impact . | . . . Slashing . | . . . Piercing . | . . . Sneak Attacks . | . . . Combat Hostiles . | . . . Follow-up Attacks . | . . . Damage Inflicted 714 | . 308 406 Guns 608 | . 279 329 Cannons . | . . . Explosions 104 | . 27 77 Melee . | . . . Ramming 2 | . 2 . Kinetic 295 | . 100 195 Thermal 206 | . 27 179 Explosive . | . . . Electromagnetic 211 | . 179 32 Impact . | . . . Slashing . | . . . Piercing . | . . . Highest Corruption . | . . . Average Corruption . | . . . Corruption Purged . | . . . Corruption Blocked . | . . . Overload Shots . | . . . Overflow Damage . | . . . Projectiles . | . . . Explosions . | . . . Melee . | . . . Knockbacks . | . . . Impact . | . . . Kinetic . | . . . Secondary . | . . . Self-Inflicted Damage . | . . . Shots . | . . . Rammed 1 | . 1 . Targets Rammed 1 | . 1 . Kicked . | . . . Crushed . | . . . Highest Temperature 255 | . 138 255 Average Temperature 47 | . 43 54 Received Heat Transfer 275 | . 102 173 Siege Activations . | . . . Robots Corrupted . | . . . Combat Hostiles . | . . . Parts Fried . | . . . Impact Corruptions . | . . . Robots Melted . | . . . Combat Hostiles . | . . . Parts Melted 1 | . 1 . Heat Transferred 385 | . 50 335 Parts Sabotaged . | . . . Parts Stolen . | . . . Parts Stripped . | . . . Power Chain Reactions 2 | . 1 1 Alert | -11 -10 -10 ------- Run | Yrd Mat Min Peak Influence 187 | . 187 120 Initial . | . . . Average 49 | . 56 42 Maximum Alert Level . | . . . Low Security (%) 100 | . 100 100 Level 1 . | . . . Level 2 . | . . . Level 3 . | . . . Level 4 . | . . . Level 5 . | . . . High Security . | . . . Max Security . | . . . Squads Dispatched 1 | . 1 . Investigation . | . . . Extermination . | . . . Reinforcement 1 | . 1 . Assault . | . . . Garrison . | . . . Intercept . | . . . Searches Triggered . | . . . Construction Impeded . | . . . Haulers Reinforced . | . . . Active Scanning Responses . | . . . Cargo Convoy Interrupts . | . . . Stealth | -11 -10 -10 --------- Run | Yrd Mat Min Distress Signals . | . . . Communications Jammed . | . . . Distress Signals . | . . . Times Spotted 31 | . 9 22 Peak Tracking Total 13 | . 3 13 Tactical Retreats . | . . . Traps | -11 -10 -10 ------- Run | Yrd Mat Min Traps Triggered . | . . . Indirectly . | . . . Trap Hack Attempts . | . . . Triggered . | . . . Disarmed . | . . . Reprogrammed . | . . . Reused . | . . . Traps Extracted . | . . . Installed . | . . . Triggered . | . . . Machines | -11 -10 -10 ---------- Run | Yrd Mat Min Machines Disabled . | . . . Max in Single Turn . | . . . Machines Repaired . | . . . Machines Dismantled . | . . . Machines Sabotaged . | . . . Overloaded Fab Kills . | . . . Hacking | -11 -10 -10 --------- Run | Yrd Mat Min Machines Accessed 1 | . 1 . Terminals 1 | . 1 . Fabricators . | . . . Repair Stations . | . . . Recycling Units . | . . . Scanalyzers . | . . . Garrison Access . | . . . Total Hacks 2 | . 2 . Successful 1 | . 1 . Failed 1 | . 1 . Catastrophic 1 | . 1 . Database Lockouts . | . . . Manual 2 | . 2 . Terminals 2 | . 2 . Fabricators . | . . . Repair Stations . | . . . Recycling Units . | . . . Scanalyzers . | . . . Garrison Access . | . . . Terminal Hacks . | . . . Fabricator Hacks . | . . . Repair Station Hacks . | . . . Recycling Unit Hacks . | . . . Scanalyzer . | . . . Garrison Access Hacks . | . . . Unauthorized Hacks 1 | . 1 . Terminals 1 | . 1 . Assimilate 1 | . 1 . Fabricators . | . . . Repair Stations . | . . . Recycling Units . | . . . Scanalyzers . | . . . Garrison Access . | . . . Data Cores Recovered . | . . . Used . | . . . Hacking Detections 1 | . 1 . Full Trace Events . | . . . Feedback Events . | . . . Feedback Blocked . | . . . Robot Schematics Acquired . | . . . Robots Built . | . . . Authchips . | . . . Time . | . . . Total Robot Build Rating . | . . . Part Schematics Acquired . | . . . Parts Built . | . . . Authchips . | . . . Time . | . . . Total Part Build Rating . | . . . Parts Repaired . | . . . Time . | . . . Parts Recycled . | . . . Recycled Matter . | . . . Retrieved Matter . | . . . Retrieved Components . | . . . Parts Scanalyzed . | . . . Part Schematics Acquired . | . . . Parts Damaged . | . . . Bothacking | -11 -10 -10 ------------ Run | Yrd Mat Min Used RIF Installer . | . . . Robots Hacked . | . . . Non-combat . | . . . Combat . | . . . Robot Hacks Applied . | . . . Relay Couplers Released . | . . . Fabnet Peak Effective % . | . . . Robots Rewired . | . . . Allies Hacked . | . . . Hacks Repelled . | . . . Allies | -11 -10 -10 -------- Run | Yrd Mat Min Total Allies 1 | . 1 . Largest Group 1 | . 1 1 Highest-Rated Group 10 | . 10 10 Highest-Rated Ally 10 | . 10 10 Total Orders . | . . . Ally Attacks . | . . . Total Damage . | . . . Kills . | . . . Allies Corrupted . | . . . Allies Melted . | . . . Intel | -11 -10 -10 ------- Run | Yrd Mat Min Robot Analysis Total . | . . . Derelict Logs Recovered 1 | . . 1 Drone Launches . | . . . Drone Recoveries . | . . . Exploration | -11 -10 -10 ------------- Run | Yrd Mat Min Turns Passed 1339 | . 634 705 Spaces Moved 703 | 1 338 364 Core . | . . . Treads 690 | . 333 357 Legs 13 | 1 5 7 Wheels . | . . . Hover . | . . . Flight . | . . . Fastest Speed 120 | 120 120 160 Average Speed 160 | 120 159 161 Slowest Speed 260 | 120 160 260 Overloaded Moves . | . . . Propulsion Burnouts . | . . . Robots Hopped . | . . . Cave-ins Triggered . | . . . Exploration Rate (%) 39 | 2 51 65 Regions Visited 2 Branch Regions 1 Pre-discovered Areas . | . . . Known Exits Taken . | . . . Unknown Exits Taken 2 | 1 1 . Scrap Searched 1 | . . 1 Spaces Dug . | . . . Terrain Destroyed 6 | . 1 5 Melee . | . . . Projectile . | . . . AOE 6 | . 1 5 Terrain Rammed . | . . . Walls Destroyed . | . . . Machines Disabled . | . . . Actions | -11 -10 -10 --------- Run | Yrd Mat Min Total 830 | . 392 438 Wait 20 | . 11 9 Move 701 | . 337 364 Hop . | . . . Pick Up 13 | . 5 8 Fast Attach 8 | . 4 4 Attach 6 | . . 6 Detach 4 | . 2 2 Swap 6 | . 1 5 Drop 15 | . 7 8 Fire 56 | . 24 32 Melee . | . . . Ram . | . . . Kick . | . . . Crush 1 | . 1 . Escape Stasis . | . . . Rewire . | . . . Trap . | . . . Miscellaneous . | . . . Route ------- -11/Scrapyard -10/Materials (discovered 3 exits: [*Mat x2] / [*Min]) -10/Mines (discovered 2 exits: [*Mat] / [*Sub]) History --------- Turn | Location | Event 1 | -11/Scrapyard | Discovered new exit (range 0) 1 | -11/Scrapyard | Entered Materials 284 | -10/Materials | Discovered new exit (range 4) 317 | -10/Materials | Build established: Mutant 403 | -10/Materials | Discovered new exit (range 8) 483 | -10/Materials | Discovered new exit (range 9) 635 | -10/Materials | Entered Mines 635 | -10/Mines | Accompanied by 1 ally 856 | -10/Mines | Found a damaged Exp. Sensor Array with a note attached 859 | -10/Mines | Found Prototype Device 897 | -10/Mines | Learned Materials garrison access intel 997 | -10/Mines | Discovered new exit (range 8) 1022 | -10/Mines | Joined a pair of Derelicts in attacking an 0b10 outpost 1156 | -10/Mines | Discovered new exit (range 5) 1253 | -10/Mines | Assembled infested the area 1300 | -10/Mines | Core integrity fell below 50% 1316 | -10/Mines | Core integrity fell below 20% 1340 | -10/Mines | Destroyed by as-07446 with Assembled Heavy Rifle Last Messages --------------- LD-6FG(g): "Pshh... whatever." The unstable cave ceiling collapses. LD-6FG(g): "Everyone knows a good old rocket launcher goes a long way." as-97248 destroyed. LD-6FG(g): "Need to get rid of a swarm? Done. Need a big hole in the wall? Done." The unstable cave ceiling collapses. LD-6FG(g): "Need a small hole in the wall? Leave that to the mining laser wimps, I say!" The unstable cave ceiling collapses. Lgt. Treads destroyed. as-60994 destroyed. LD-6FG(g) shuts down. The unstable cave ceiling collapses. LD-6FG(g) destroyed. as-09384 destroyed. Lgt. Treads destroyed. D-53 Grenadier destroyed. The unstable cave ceiling collapses. Destroyed Asb. Hover Unit. Map ----- +----------------------------------------------------+ | | | | | | | | | | | ?????????????????????????????????????????????????? | | ?????????????????????????????????????????????????? | | ????????????######???????????????????????????????? | | ???????????##" "##??????????????????????????????? | | ???????????#!![!]!#??????????????????????????????? | | ???###?????#! ==[!#??????????????????????????????? | | #### ##????## %**##??????????????????????????????? | | ###??###++###??????????????????????????????? | | ### #### ##?????????????????????????????? | | ?## < #?????????????????????????????? | | ## #????????????#????????????????? | | # ##### ##??????????? #????????????????? | | # ##??### ###????????### #????????????????? | | # ##?### # ######???# ##???????????????? | | ###?? # # #### ####????????????? | | ##??### ! ! ????????????? | | #???# % #??????????????? | | ##??## * #??????????????? | | ###????## # #???????????????? | | #??????# # a ## ?????????? | | #??????# #### @ #?????????? | | #??????## #??# # #?????????? | | ######## # ??####### % #### #?????????? | | # ?????????# *##????????????????? | | ##### # ?????????? #?????????????????? | | ????# # = ??????????? #?????????????????? | | ????# ## = ??????????? #?????????????????? | | ????# # ######## #?????????????????? | | ????# ##! % *%= #?????????????????? | | ??### ## ########## #????????????????? | | ### ## # #?????????????? ????????????????? | | # #??????????????? ????????????????? | | #??????????????? ???????????????? | | #???????????????? ????????????????? | | ##?????????????????????????????????? | | ####??????????????????????????????????? | | # ##?????????????????????????????????????? | | # ## #??????????????????????????????????????? | | # ### #??????????????????????????????????????? | | # #### #??????????????????????????????????????? | | # " ##??????????????????????????????????????? | | ######"%##???????????????????????????????????????? | | ?????# "#????????????????????????????????????????? | | ?????# #??????????##????????????????????????????? | | ?????# #?####??? ##???????????????????????????? | +----------------------------------------------------+ Best States ------------- Heat Dissipation 25 Energy Generation 18 Energy Capacity 250 Matter Stores 300 Matter Capacity 300 Sight Range 16 Terrain Scan Range 14 Terrain Scan Density 10 Evasion (%) 40 Recoil Reduction 2 Item Schematics ----------------- None Robot Schematics ------------------ None Fabricated ------------ Nothing Alien Tech Used ----------------- None Achievements -------------- None Challenges ------------ None Game ------ Seed RemoteBladeSpoofer Manual? 0 Play Time 00:13:26 Cumulative 89.8 hours Start 2024.04.27 @ 11:53:16 End 2024.04.27 @ 12:15:11 Sessions 1 Manual Loads 0 Difficulty Rogue Special Mode None Game No. 177 Rogue 175 Adventurer 2 Explorer 0 Win Type - Total 3 Types 2/0/0/1/0/0/0/0/0 Lore% 52 Gallery% 53 Achievement% 41 Wizard Run 0 Options --------- Layout 0 ASCII 0 Keyboard 1 Movement Numpad Keybinds 1 Fullscreen 2 Font 18/SmallcapsGlow Map View 76x50 Zoom Use 0% Tactical HUD 1 Map Filters NONE Filters NONE Steam 1 RUN: 8ea0fdeb-60e3-4b60-81fa-83c8ae26419d